[Event "44th Chess Olympiad Open 2022"]
[Site "Chennai"]
[Date "2022.08.07"]
[Round "9.7"]
[White "Vera Siguenas, Deivy"]
[Black "Solak, Dragan"]
[Result "0-1"]
[WhiteElo "2503"]
[BlackElo "2594"]
[Annotator "TA"]
[PlyCount "68"]
[EventDate "2022.??.??"]
[TimeControl "60"]

{[%evp 9,68,10,8,14,10,23,25,13,25,8,15,0,73,56,66,60,71,75,72,52,45,8,41,10,
12,10,13,26,22,12,8,12,42,39,42,37,38,40,36,37,27,48,31,0,75,0,0,0,0,-29,-43,
-81,-93,-96,-92,-95,-94,-127,-125,-225,-212]} 1. d4 {[%emt 0:00:03]} d5 {
[%emt 0:00:12][%cal Yd7d5,Yd5c4]} 2. c4 {[%emt 0:00:04]} c6 {[%emt 0:00:00]} 3.
Nc3 {[%emt 0:00:12]} dxc4 {[%emt 0:02:47]} 4. e3 {[%emt 0:00:39]} b5 {[%emt 0:
00:33][%cal Yb7b5,Yb5b4,Yb4c3]} 5. a4 {[%emt 0:00:00]} b4 {[%emt 0:00:38]} 6.
Ne4 {[%emt 0:00:08][%cal Yc3e4,Ye4d2,Yd2b1] D10: Slav Defence: 3 cxd5 (without
early Nf3) and 3 Nc3.} Qd5 {[%emt 0:04:47]} 7. Nd2 {[%emt 0:00:11]} c3 {
[%emt 0:02:14]} 8. bxc3 {[%emt 0:03:01] White has an edge.} bxc3 {[%emt 0:00:
05]} 9. Nb1 {[%emt 0:00:56]} Qa5 {[%emt 0:00:36] White must now prevent ...c2+.
} 10. Qc2 {[%emt 0:01:35]} e5 $5 {[%emt 0:11:26] Exploring less charted
territory.} (10... Na6 $11 {keeps the balance.} 11. Qxc3 (11. Nxc3 e5 $11)
11... Nb4) 11. Nf3 $1 $16 {[%emt 0:17:52]} exd4 {[%emt 0:02:57]} 12. Nxd4 {
[%emt 0:00:16]} Nf6 {[%emt 0:02:47]} 13. Nxc3 {[%emt 0:06:51]} Bb4 {[%emt 0:00:
43]} 14. Bd2 {[%emt 0:00:29]} O-O {[%emt 0:00:00]} 15. Bd3 {[%emt 0:06:25] [#]}
Ba6 $146 {[%emt 0:20:08]} (15... c5 $5 {[%cal Rc5d4]} 16. Nb3 Qb6 $11) ({
Predecessor:} 15... Bb7 16. O-O Nbd7 17. Nb3 Qh5 18. Ne4 c5 19. a5 Nxe4 20.
Bxe4 Bxe4 21. Qxe4 Nf6 {0-1 (57) Didiliuc,D (1846)-Terbe,J (2171) Calimanesti
Caciulata 2016}) 16. O-O {[%emt 0:01:19]} (16. Ne4 $5 {[%cal Re4f6]}) 16...
Bxd3 {[%emt 0:00:11]} 17. Qxd3 {[%emt 0:00:04]} c5 {[%emt 0:06:01]} (17... Rd8
$5 {[%cal Rc6c5]} 18. Ne4 Bxd2 19. Qxd2 Qxd2 20. Nxd2 c5 $11) 18. Nb3 {[%emt 0:
07:43]} Qb6 {[%emt 0:10:58]} 19. Ne4 {[%emt 0:18:43]} Nxe4 {[%emt 0:22:30]} 20.
Qxe4 {[%emt 0:00:18]} Nd7 {[%emt 0:00:00]} 21. a5 {[%emt 0:08:50]} Qe6 {
[%emt 0:04:48]} 22. Qxe6 {[%emt 0:01:13]} fxe6 {[%emt 0:00:02]} 23. Bxb4 {
[%emt 0:00:07]} cxb4 {[%emt 0:00:03]} 24. Rfd1 {[%emt 0:00:13]} Nf6 {[%emt 0:
00:22]} 25. Rd4 {[%emt 0:01:53]} Rab8 {[%emt 0:00:00]} 26. Rc1 {[%emt 0:00:44]}
Rfd8 {[%emt 0:01:17]} (26... e5 $11 27. Rdc4 Rfd8) 27. Rc7 {[%emt 0:02:09]} ({
Better is} 27. Kf1 $16) 27... e5 $11 {[%emt 0:00:00]} 28. Rxd8+ {[%emt 0:09:28]
} Rxd8 {[%emt 0:00:02][%cal Rd8d1] Endgame KRN-KRN} 29. Kf1 {[%emt 0:00:28]}
Rd3 $1 {[%emt 0:00:18]} 30. Nc1 {[%emt 0:11:46] [#]} Ra3 {[%emt 0:00:11]} 31.
Ke2 {[%emt 0:00:03]} Rxa5 {[%emt 0:01:10]} 32. Rb7 {[%emt 0:00:04]} Nd5 {
[%emt 0:00:59]} 33. Nd3 {[%emt 0:00:00]} Nc3+ {[%emt 0:00:19]} 34. Ke1 {
[%emt 0:00:21] [#]} (34. Kd2 $17 Ra2+ 35. Kc1) 34... Rd5 $1 {[%emt 0:00:59]
Weighted Error Value: White=0.16 (very precise) /Black=0.14 (very precise)} ({
Worse is} 34... Ra1+ 35. Kd2 Ra2+ 36. Kc1 $17) 0-1

[Event "44th Chess Olympiad Open 2022"]
[Site "Chennai"]
[Date "2022.08.07"]
[Round "9.8"]
[White "Jumabayev, Rinat"]
[Black "Indjic, Aleksandar"]
[Result "0-1"]
[WhiteElo "2617"]
[BlackElo "2620"]
[Annotator "TA"]
[PlyCount "120"]
[EventDate "2022.??.??"]
[TimeControl "60"]

{[%evp 16,120,41,0,0,0,13,8,14,18,14,11,13,0,4,0,0,0,20,0,0,-27,-30,-47,-30,
-78,-69,-92,-72,-129,-120,-153,-136,-137,-131,-195,-191,-226,-235,-274,-172,
-243,-231,-242,-232,-259,-264,-252,-184,-190,-196,-221,-226,-228,-220,-204,
-204,-568,-180,-373,-376,-390,-262,-503,-496,-496,-470,-523,-453,-537,-509,
-532,-514,-601,-561,-1841,-1841,-1835,-1670,-1716,-1424,-1824,-1799,-12685,
-12810,-11600,-9387,-9556,-8843,-8991,-5624,-5616,-2629,-4706,-4714,-29971,
-29972,-29972,-29973,-29973,-29974,-29974,-29975,-29975,-29976,-29973,-29964]} 
1. d4 {[%emt 0:00:41]} Nf6 {[%emt 0:00:35]} 2. c4 {[%emt 0:00:07]} e6 {[%emt 0:
00:00]} 3. Nf3 {[%emt 0:00:04]} c5 {[%emt 0:00:42]} 4. d5 {[%emt 0:00:07]} d6 {
[%emt 0:00:09]} 5. Nc3 {[%emt 0:00:07]} exd5 {[%emt 0:00:06]} 6. cxd5 {[%emt 0:
00:00]} g6 {[%emt 0:00:11]} 7. h3 {[%emt 0:00:21]} Bg7 {[%emt 0:03:42]} 8. e4 {
[%emt 0:00:06]} O-O {[%emt 0:01:18]} 9. Be3 {[%emt 0:00:07]} Re8 {[%emt 0:00:
00] A70: Modern Benoni: 6 e4 g6 7 Nf3.} 10. Nd2 {[%emt 0:00:15]} a6 {[%emt 0:
00:00][%cal Yf6e4]} 11. a4 {[%emt 0:00:06]} Nxe4 $1 {[%emt 0:00:15] The
position is equal.} 12. Ncxe4 {[%emt 0:00:10] And now Be2 would win.} ({But not
} 12. Ndxe4 f5 $15) 12... f5 {[%emt 0:00:05] [#]} 13. Be2 $1 {[%emt 0:00:23]
aiming for Bg5.} fxe4 {[%emt 0:00:38]} 14. Nc4 {[%emt 0:00:14]} a5 {[%emt 0:00:
00] [#]} 15. O-O $146 {[%emt 0:11:50]} ({Predecessor:} 15. Qb3 Na6 16. Bf4 Bf8
17. Nb6 Rb8 18. O-O Nb4 19. Bb5 Nd3 20. Bxe8 {1-0 (20) Plutarco,F (1894)
-Peterson,O (1886) LSS email 2020}) 15... Na6 {[%emt 0:00:31]} 16. Bf4 {
[%emt 0:00:15]} Bf8 {[%emt 0:00:07]} 17. Qd2 {[%emt 0:36:53] White has
compensation.} Nb4 {[%emt 0:00:22]} 18. Rfe1 {[%emt 0:00:15]} b6 {[%emt 0:00:
00]} 19. Rad1 {[%emt 0:03:30]} Ra7 {[%emt 0:04:09]} 20. b3 {[%emt 0:00:51]} (
20. Na3 $11) 20... Rf7 $17 {[%emt 0:00:48] Black converts the advantage
convincingly.} 21. Bg3 {[%emt 0:09:50]} h5 {[%emt 0:04:10] Prevents Bg4.} 22.
Ne3 {[%emt 0:07:27]} (22. f3 $142) 22... Bh6 {[%emt 0:02:53][%cal Yf8h6,Yh6g7,
Yg7d4]} 23. Bc4 {[%emt 0:00:30]} Ref8 {[%emt 0:05:17] 0x0.0023609bdb29dp-1022s
more active pieces.} 24. Re2 {[%emt 0:05:48]} g5 {[%emt 0:00:00]} 25. Qe1 {
[%emt 0:05:23]} (25. Qb2 $17 {keeps fighting.}) 25... Bg7 $19 {[%emt 0:01:58]}
26. Rdd2 {[%emt 0:05:53]} Bd4 {[%emt 0:09:56]} 27. Kh1 {[%emt 0:01:35]} g4 {
[%emt 0:01:56]} 28. hxg4 {[%emt 0:03:48]} (28. h4 $142) 28... hxg4 {[%emt 0:05:
31]} 29. Nf1 {[%emt 0:00:05]} Nd3 {[%emt 0:03:05]} 30. Bxd3 {[%emt 0:03:34]}
exd3 {[%emt 0:00:09]} 31. Rxd3 {[%emt 0:00:34]} Ba6 {[%emt 0:02:55]} 32. Rxd4 {
[%emt 0:00:39]} Bxe2 {[%emt 0:01:11]} 33. Re4 {[%emt 0:00:05] Inhibits Qe8.}
Bxf1 {[%emt 0:00:21]} ({Weaker is} 33... Rh7+ 34. Nh2 Bd3 35. Rxg4+ Kh8 {[#]}
36. Bh4 $1 Rxh4 37. Qa1+ Qf6 38. Rxh4+ Kg7 39. Rg4+ Bg6 40. Qd1 $11) 34. Qxf1 {
[%emt 0:02:09]} Qg5 {[%emt 0:03:18]} 35. Qc4 {[%emt 0:00:52]} Rg7 {[%emt 0:00:
07]} 36. Bxd6 $2 {[%emt 0:03:15]} (36. Kg1 {is a better chance.} Qf5 37. Re6)
36... Rxf2 $2 {[%emt 0:03:02]} (36... Qd2 37. Qe2 (37. Bxf8 $2 Rh7+ 38. Kg1
Qd1+ 39. Qf1 Rh1+ 40. Kxh1 Qxf1+ 41. Kh2 Kxf8 $19) 37... Qh6+ 38. Bh2 Rh7 39.
Rxg4+ Kf7 40. Qe6+ Qxe6 41. dxe6+ Ke7) 37. Bg3 $2 {[%emt 0:00:10]} (37. Bf4 {
was forced.} Qf5 38. d6+ Kf8 39. d7 Qxd7 40. Kh2 g3+ 41. Bxg3) 37... Rd2 {
[%emt 0:01:02][%cal Yf2d2,Yd2d5,Yd5d1] Threatens to win with ...Rd1+.} 38. d6+
{[%emt 0:00:35]} Kh7 {[%emt 0:02:08]} 39. Re1 $2 {[%emt 0:00:42]} (39. Qf1 {
might work better.}) 39... Qd5 {[%emt 0:03:43]} 40. Qxd5 {[%emt 0:00:36]} Rxd5
{[%emt 0:00:04] Endgame KRR-KRB} 41. Re3 {[%emt 0:02:08]} Rd1+ {[%emt 0:13:14]}
42. Kh2 {[%emt 0:00:13]} Kg8 {[%emt 0:00:00] Hoping for ...Rh7+.} 43. Re8+ {
[%emt 0:16:04]} Kf7 {[%emt 0:00:20]} 44. Rh8 {[%emt 0:01:18]} Kg6 {[%emt 0:00:
34]} 45. Be5 {[%emt 0:00:03]} Rh7+ {[%emt 0:01:09]} 46. Rxh7 {[%emt 0:00:05]}
Kxh7 {[%emt 0:00:07] KR-KB} 47. Kg3 {[%emt 0:00:01]} Rd5 {[%emt 0:00:52]} 48.
Bf4 {[%emt 0:01:34]} Kg6 {[%emt 0:00:00] Strongly threatening ...Kf5.} 49. Kxg4
{[%emt 0:00:14]} Kf6 {[%emt 0:00:06]} 50. Kf3 {[%emt 0:00:42]} Rd3+ {[%emt 0:
00:22]} 51. Ke4 {[%emt 0:00:04]} Rd4+ {[%emt 0:00:05]} 52. Ke3 {[%emt 0:00:09]}
Rb4 {[%emt 0:00:07]} 53. g4 {[%emt 0:00:00]} Rxb3+ {[%emt 0:00:31]} (53... Ke6
$142 54. g5 Rxb3+ 55. Kd2 Rb4) 54. Ke4 {[%emt 0:01:04]} Rb4+ {[%emt 0:00:44]}
55. Ke3 {[%emt 0:00:16]} Rxa4 {[%emt 0:05:29] Black mates.} 56. d7 {[%emt 0:03:
55]} Ke7 {[%emt 0:00:11]} 57. Bc7 {[%emt 0:00:15]} Kxd7 {[%emt 0:00:06]} 58.
Bxb6 {[%emt 0:00:04]} Kc6 {[%emt 0:00:15]} 59. Bd8 {[%emt 0:00:04]} Rxg4 {
[%emt 0:00:27]} 60. Bxa5 {[%emt 0:00:05]} Kb5 {[%emt 0:00:04] Weighted Error
Value: White=0.75/Black=0.21 (precise)} 0-1

[Event "44th Chess Olympiad Open 2022"]
[Site "Chennai"]
[Date "2022.08.07"]
[Round "9.8"]
[White "Markus, Robert"]
[Black "Suleymenov, Alisher"]
[Result "1-0"]
[WhiteElo "2616"]
[BlackElo "2467"]
[Annotator "TA"]
[PlyCount "89"]
[EventDate "2022.??.??"]
[TimeControl "60"]

{[%evp 10,89,-4,-5,24,23,22,19,20,19,22,17,29,30,31,26,22,14,10,0,11,0,5,12,7,
18,23,21,31,25,23,39,35,40,43,36,42,41,130,131,160,160,162,152,154,154,170,51,
48,46,40,41,56,12,13,38,63,63,63,49,63,63,63,63,58,18,22,7,10,15,153,111,1571,
662,660,591,752,504,1359,783,2679,2317]} 1. d4 {[%emt 0:00:06]} Nf6 {[%emt 0:
00:00]} 2. Nf3 {[%emt 0:00:05]} g6 {[%emt 0:00:07]} 3. c3 {[%emt 0:00:08]} Bg7
{[%emt 0:00:56]} 4. Bf4 {[%emt 0:00:07]} O-O {[%emt 0:01:20]} 5. Nbd2 {[%emt 0:
00:00]} d6 {[%emt 0:04:27]} 6. h3 {[%emt 0:00:30]} c5 {[%emt 0:01:11] A48:1 d4
Nf6 2 Nf3 g6: Torre, London and Colle Systems.} 7. dxc5 $1 {[%emt 0:00:22] is
recently more successful than 7.e3.} dxc5 {[%emt 0:04:54]} 8. e4 {[%emt 0:00:
13]} Nc6 {[%emt 0:05:57] The position is equal.} 9. Be2 {[%emt 0:00:00]} b6 {
[%emt 0:07:14][%cal Ye7e5]} 10. O-O {[%emt 0:02:42]} Nh5 {[%emt 0:00:00]} 11.
Bh2 {[%emt 0:00:47]} Bb7 {[%emt 0:06:52]} 12. Qc2 {[%emt 0:04:53]} Bh6 {
[%emt 0:07:22]} 13. Rfd1 {[%emt 0:02:02] [#]} Bf4 $146 {[%emt 0:01:13]} ({
Predecessor:} 13... Nf4 14. Bf1 Qd6 15. Kh1 Qf6 16. Re1 Rad8 17. Rad1 Ne5 {
½-½ (17) Postny,E (2557)-Mikhalevski,V (2562) Safed 2021}) 14. Nc4 {[%emt 0:
00:00]} Qc7 {[%emt 0:04:42]} 15. Bxf4 {[%emt 0:08:14]} Nxf4 {[%emt 0:00:08]}
16. Bf1 {[%emt 0:00:44]} Ba6 {[%emt 0:10:05]} 17. Qa4 {[%emt 0:04:25]} Bxc4 {
[%emt 0:03:46]} 18. Qxc4 {[%emt 0:00:34][%cal Ye4e5]} Na5 {[%emt 0:03:33] Pair
of Knights!} 19. Qa4 {[%emt 0:01:05]} Rad8 {[%emt 0:00:21] Inhibits Rd7.} 20.
b4 {[%emt 0:05:08]} Nc6 {[%emt 0:01:13]} 21. bxc5 {[%emt 0:00:43]} bxc5 {
[%emt 0:01:36]} 22. g3 {[%emt 0:03:26]} Nh5 {[%emt 0:04:49]} 23. Rd5 {[%emt 0:
00:00]} Na5 {[%emt 0:01:20]} (23... Rxd5 $14 24. exd5 Ne5) 24. Rb1 $16 {
[%emt 0:05:26] Rb5 is the strong threat.} a6 {[%emt 0:07:06] Prevents Rb5.} 25.
Rxd8 $1 {[%emt 0:04:26] White is more active.} (25. Bxa6 Nxg3 26. Rxd8 Rxd8 $11
) 25... Rxd8 {[%emt 0:00:34]} 26. e5 {[%emt 0:00:05]} ({Inferior is} 26. Bxa6
Nxg3 27. e5 Nf5 $11) 26... c4 {[%emt 0:05:34] [#]} 27. Qb4 $1 {[%emt 0:05:19]}
Ng7 {[%emt 0:00:57][%cal Yh5g7,Yg7e6,Ye6c5,Yc5e4] [#]} 28. Qb6 {[%emt 0:01:16]}
(28. Nd4 $1 $18) 28... Ne6 $14 {[%emt 0:00:25]} 29. Qxa6 {[%emt 0:00:19]
aiming for Rb6.} Nc5 {[%emt 0:01:00]} 30. Qb5 {[%emt 0:04:14]} Ne4 {[%emt 0:01:
08]} 31. Qb2 {[%emt 0:00:54] Threatening Qc2.} (31. e6 {feels hotter.} f5 32.
Qb4 Qa7 33. Rb2) 31... Qc5 {[%emt 0:01:36][%cal Yd8d2]} 32. Nd4 {[%emt 0:05:53]
} Nxc3 {[%emt 0:02:02] Remove Defender} 33. Qxc3 {[%emt 0:03:08]} Rxd4 {
[%emt 0:00:03]} 34. a4 {[%emt 0:02:48]} Nc6 {[%emt 0:04:18] Prevents Rb8+.} (
34... Qxe5 $2 35. Rb5 Qf6 36. Rxa5 $18) 35. Rb5 {[%emt 0:01:20][%cal Yb1b5,
Yb5d5,Yd5d4,Yd4e4]} Qa7 {[%emt 0:00:04]} 36. Bxc4 {[%emt 0:02:26]} Rd1+ {
[%emt 0:01:56]} 37. Kg2 {[%emt 0:00:21]} Nd4 {[%emt 0:01:36]} 38. Rd5 {[%emt 0:
04:28][%cal Ye5e6] And now e6! would win.} Qb7 {[%emt 0:04:24]} 39. f3 $36 {
[%emt 0:01:05] White is more active.} Qb1 {[%emt 0:02:01]} 40. Rxd4 {[%emt 0:
01:17]} Rh1 {[%emt 0:01:42] This costs Black the game.} (40... Rc1 $16 41. Qe3
(41. Rd8+ Kg7 $11) 41... Rxc4 42. Rxc4 Qa2+ 43. Qf2 Qxc4) 41. Qe3 {[%emt 0:35:
00] White is clearly winning.} Re1 {[%emt 0:22:28]} 42. Be2 {[%emt 0:00:00]}
Qa1 {[%emt 0:01:28]} 43. Re4 {[%emt 0:00:00] Strongly threatening e6.} Rh1 {
[%emt 0:00:48]} (43... e6 $142 44. Qf2 Rb1) 44. g4 {[%emt 0:00:00][%cal Yg3g4,
Yg4h5]} h5 {[%emt 0:03:26]} 45. gxh5 {[%emt 0:00:00] Weighted Error Value:
White=0.28 (precise) /Black=0.14 (very precise)} 1-0

[Event "44th Chess Olympiad Open 2022"]
[Site "Chennai"]
[Date "2022.08.07"]
[Round "9.8"]
[White "Perunovic, Milos"]
[Black "Urazayev, Arystanbek"]
[Result "1/2-1/2"]
[WhiteElo "2539"]
[BlackElo "2430"]
[Annotator "TA"]
[PlyCount "150"]
[EventDate "2022.??.??"]
[TimeControl "60"]

{[%evp 13,150,18,14,12,12,6,17,0,0,1,1,-4,-6,0,9,0,0,-14,-16,-20,0,-17,5,-14,0,
-3,-4,-24,4,-7,-13,-48,-55,-48,-34,-45,-37,-64,-54,-92,-90,-96,-54,-76,-19,-72,
-47,-53,-45,-70,-62,-66,-70,-69,-76,-66,-57,-66,-60,-69,0,0,0,-24,-7,-8,-8,-23,
-11,-62,0,0,0,0,-2,-64,-79,-83,-65,-65,-63,-119,-119,-127,-127,-127,-127,-142,
-134,-440,-387,-708,-708,-581,-570,-548,-518,-445,-430,-337,-313,-235,0,0,0,0,
0,0,0,0,0,-204,-6,-14,0,0,0,0,0,0,0,0,0,0,0,0,0,0,0,0,0,0,0,0,0,0,0,0,0]} 1. e4
{[%emt 0:00:07]} e5 {[%emt 0:00:23]} 2. Nf3 {[%emt 0:00:20]} Nc6 {[%emt 0:00:
00]} 3. Bb5 {[%emt 0:00:43]} a6 {[%emt 0:00:24]} 4. Ba4 {[%emt 0:00:08]} Nf6 {
[%emt 0:00:13]} 5. O-O {[%emt 0:00:45]} Be7 {[%emt 0:00:38]} 6. d3 {[%emt 0:00:
00]} b5 {[%emt 0:00:13]} 7. Bb3 {[%emt 0:00:07]} d6 {[%emt 0:00:15]} 8. Bd2 {
[%emt 0:03:42] C84: Closed Ruy Lopez: Unusual White 6th moves.} Bg4 {[%emt 0:
00:00]} 9. c3 {[%emt 0:00:07] Prevents Nd4.} O-O {[%emt 0:02:08]} 10. h3 {
[%emt 0:01:28]} Bh5 {[%emt 0:00:03]} 11. Re1 {[%emt 0:08:11]} Na5 {[%emt 0:00:
00]} 12. Bc2 {[%emt 0:01:19]} c5 {[%emt 0:00:05]} 13. Bc1 {[%emt 0:00:08]} Nc6
{[%emt 0:00:32]} 14. Nbd2 {[%emt 0:00:07]} d5 {[%emt 0:01:25]} 15. Qe2 {
[%emt 0:00:17]} d4 {[%emt 0:04:10]} 16. Nf1 {[%emt 0:03:47] [#]} Re8 $146 {
[%emt 0:07:23]} ({Predecessor:} 16... Rc8 17. Ng3 Bg6 18. Bd2 Nd7 19. Bb3 Nb6
20. cxd4 Nxd4 21. Nxd4 Qxd4 22. Bc3 Qd6 {1-0 (34) Huschenbeth,N (2616)-Rafiee,
M (2322) Guatemala City 2020}) 17. Bd2 {[%emt 0:07:53]} Bf8 {[%emt 0:02:29]}
18. g4 {[%emt 0:13:40]} Bg6 {[%emt 0:01:33]} 19. Ng3 {[%emt 0:00:08]} Rc8 {
[%emt 0:05:46]} 20. a3 {[%emt 0:06:11]} c4 {[%emt 0:13:37]} 21. Rad1 {[%emt 0:
00:00]} Qb6 {[%emt 0:04:04]} 22. Bc1 {[%emt 0:12:03]} (22. dxc4 {looks sharper.
} bxc4 23. Qxc4 Na5 24. Qa2) 22... dxc3 {[%emt 0:02:02]} 23. bxc3 {[%emt 0:00:
00]} cxd3 {[%emt 0:00:37]} 24. Rxd3 {[%emt 0:00:38]} Na5 {[%emt 0:02:56]} 25.
Nh4 {[%emt 0:01:45]} Red8 {[%emt 0:04:46]} 26. Red1 {[%emt 0:03:01]} Rxd3 {
[%emt 0:04:06]} 27. Rxd3 {[%emt 0:00:41]} Qe6 {[%emt 0:00:55]} 28. Nhf5 {
[%emt 0:02:11]} Qa2 {[%emt 0:04:46]} (28... Nb7 $17) 29. Qd1 {[%emt 0:07:57]} (
29. Bg5 $1 $11 {remains equal.}) 29... h6 {[%emt 0:05:08]} 30. Rf3 {[%emt 0:00:
00]} Kh7 {[%emt 0:06:39]} 31. g5 {[%emt 0:01:40]} hxg5 {[%emt 0:00:46]} 32.
Bxg5 {[%emt 0:00:06]} Nh5 {[%emt 0:03:34]} (32... Qxa3 33. Bxf6 gxf6 34. h4
Rxc3 35. Rxc3 Qxc3 36. Qd8 Qe1+ 37. Kg2 $11) 33. Nh4 {[%emt 0:03:45]} Rc6 {
[%emt 0:10:11]} 34. Nxg6 {[%emt 0:00:57]} Rxg6 {[%emt 0:00:19]} 35. Nxh5 {
[%emt 0:01:29]} Rxg5+ {[%emt 0:00:05]} 36. Ng3 $1 {[%emt 0:00:04]} Bc5 {
[%emt 0:05:15]} (36... Rg6 $1 $15 37. Bb1 Rd6 38. Bxa2 Rxd1+ 39. Kg2 f6) 37.
Kg2 $11 {[%emt 0:01:33]} Nc4 {[%emt 0:01:50]} (37... Qxa3 $2 38. h4 Rxg3+ 39.
Rxg3 $18) 38. h4 {[%emt 0:00:46]} Rg6 {[%emt 0:01:25] White must now prevent ..
.Rd6.} 39. Rf5 {[%emt 0:00:39]} Rh6 $36 {[%emt 0:04:55][%cal Yc5f2] Black has
the initiative.} (39... Nxa3 $2 40. Bb3 Qb1 41. Qh5+ Rh6 42. Qxf7 Qxb3 43. Qxb3
$18) ({Don't play} 39... Qxa3 40. Rxf7 Be3 41. Bb3 $16) 40. Kh3 {[%emt 0:00:38]
} Be7 {[%emt 0:01:39][%cal Yc5e7,Ye7f6,Yf6g5]} (40... Qxa3 41. Rxf7 Nd6 42. Rf3
$16) (40... Nxa3 $2 41. Bb3 Qb1 42. Qd5 Bxf2 43. Qxf7 $18) 41. h5 {[%emt 0:03:
38]} ({Better is} 41. Nh5 $1 $11 Rd6 42. Qg4) 41... Rf6 {[%emt 0:14:12]} ({
But not} 41... Qxa3 42. Rxf7 Rf6 43. Rxf6 Bxf6 44. Qg4 $11) (41... Rd6 $15 42.
Qg4 Kg8) 42. Rxf6 {[%emt 0:09:33]} Bxf6 {[%emt 0:00:10]} (42... gxf6 $2 43. Qd5
Kg8 44. h6 $1 $18) 43. h6 $1 {[%emt 0:01:01]} Nb2 {[%emt 0:09:07]} (43... g6 $2
44. Qf3 Nxa3 45. Qxf6 $18) 44. Qf3 {[%emt 0:07:56]} (44. Qd5 $1 $11 Qxd5 45.
exd5+ g6 46. d6) 44... Qe6+ $15 {[%emt 0:01:27]} ({Much worse is} 44... Qxa3
45. hxg7 Bxg7 46. Qxf7 $14) 45. Kg2 {[%emt 0:00:07]} g6 {[%emt 0:01:31]} 46.
Bb3 $1 {[%emt 0:00:15]} Nc4 {[%emt 0:00:19]} 47. a4 {[%emt 0:00:18]} (47. Bxc4
$15 bxc4 48. Qe3) 47... Bg5 $17 {[%emt 0:02:37]} 48. axb5 {[%emt 0:00:22]} axb5
{[%emt 0:00:02]} 49. Bxc4 {[%emt 0:04:19]} bxc4 {[%emt 0:00:46] Endgame KQB-KQN
} 50. Nf1 {[%emt 0:00:15]} Bxh6 {[%emt 0:00:07]} 51. Ne3 $2 {[%emt 0:00:01]} (
51. Qe2 $17 {is tougher.}) 51... Bxe3 $19 {[%emt 0:00:23]} 52. Qxe3 {[%emt 0:
00:01] KQ-KQ} (52. fxe3 Kg7 53. Qg3) 52... Qg4+ {[%emt 0:01:15]} 53. Kf1 {
[%emt 0:00:24]} Qd1+ {[%emt 0:00:50]} 54. Kg2 {[%emt 0:00:01]} Qd3 {[%emt 0:03:
25] ( -> ...Qxe3)} 55. Qe1 {[%emt 0:02:06]} Kg7 {[%emt 0:00:07]} 56. f3 {
[%emt 0:00:05]} Kf6 {[%emt 0:00:00]} 57. Kg3 {[%emt 0:00:24] [#]} Ke6 $2 {
[%emt 0:01:16]} (57... g5 $1 $19 {And now ...Kg6 would win.} 58. Qc1 Qe2) 58.
Qa1 $11 {[%emt 0:00:20]} Qe2 {[%emt 0:00:33]} 59. Qa5 {[%emt 0:01:35]} Qe1+ {
[%emt 0:00:53]} 60. Kg2 {[%emt 0:00:01]} Qd2+ {[%emt 0:00:05]} 61. Kg3 {
[%emt 0:00:23]} Qd3 {[%emt 0:00:00]} 62. Kg4 $2 {[%emt 0:02:04]} (62. Qb6+ $11
{and White is okay.} Ke7 63. Qa7+ Kf6 64. Qa5) 62... Kf6 $2 {[%emt 0:00:53]} (
62... f5+ $19 63. exf5+ gxf5+ 64. Kh4 Qd6) 63. Kg3 {[%emt 0:00:21] The
position is equal.} Qf1 {[%emt 0:00:00] aiming for ...Qg1+.} 64. Qd8+ $1 {
[%emt 0:00:22]} Kg7 {[%emt 0:00:06]} 65. Qa5 $1 {[%emt 0:00:21]} Qg1+ {[%emt 0:
00:28]} 66. Kh3 {[%emt 0:00:01]} Qf1+ {[%emt 0:00:22]} 67. Kg3 {[%emt 0:00:02]}
f6 {[%emt 0:00:47]} 68. Qd8 $1 {[%emt 0:01:26]} Qg1+ {[%emt 0:00:37]} 69. Kh3 {
[%emt 0:00:06]} Qc5 {[%emt 0:00:00]} 70. Kg3 {[%emt 0:00:28]} g5 {[%emt 0:00:
28]} 71. Qd7+ {[%emt 0:00:41]} Kg6 {[%emt 0:00:26]} 72. Qe8+ {[%emt 0:00:19]}
Kg7 {[%emt 0:00:32] Threatens to win with ...Qg1+.} 73. Qd7+ {[%emt 0:00:15]}
Kg6 {[%emt 0:00:27]} 74. Qe8+ {[%emt 0:00:06]} Kg7 {[%emt 0:00:02] Strongly
threatening ...Qg1+.} 75. Qd7+ {[%emt 0:00:05]} Kg6 {[%emt 0:00:02] Black had
all chances to win. Weighted Error Value: White=0.20 (precise) /Black=0.13 
(very precise)} 1/2-1/2